[Event "1st Bangalore GM-Open-A 2024"]
[Site "Bangalore"]
[Date "2024.01.20"]
[Round "4.37"]
[White "Vrashank Chouhan"]
[Black "Jain Kashish Manoj"]
[Result "0-1"]
[ECO "D02"]
[WhiteElo "2046"]
[BlackElo "2334"]
[Annotator "RC"]
[PlyCount "104"]
[EventDate "2024.01.20"]
[EventType "swiss"]
[EventCountry "IND"]
[SourceTitle "playchess.com"]
[Source "ChessBase"]
[SourceQuality "1"]
[TimeControl "5400+30"]

1. d4 {[%emt 0:00:02]} d5 {[%emt 0:00:26]} 2. Bf4 {[%emt 0:00:07]} Nf6 {[%emt 0:00:07]} 3. e3 {[%emt 0:00:04]} c5 {[%emt 0:00:04]} 4. Nf3 {[%emt 0:00:04]} Nc6 {[%emt 0:00:04]} 5. Nbd2 {[%emt 0:00:04]} Nh5 {[%emt 0:00:04]} 6. Be5 {[%emt 0:01:31]} e6 {[%emt 0:00:17]} 7. c4 {[%emt 0:00:55]} cxd4 {[%emt 0:00:59]} 8. exd4 {[%emt 0:01:25]} f6 {[%emt 0:25:13]} 9. Bg3 {[%emt 0:00:17]} g6 {[%emt 0:00:40]} 10. a3 {[%emt 0:10:39]} Bg7 {[%emt 0:02:57]} 11. Be2 {[%emt 0:03:52]} O-O {[%emt 0:01:18]} 12. O-O {[%emt 0:00:10]} Kh8 {[%emt 0:14:56]} 13. Rc1 {[%emt 0:04:16]} Nxg3 {[%emt 0:04:54]} 14. hxg3 {[%emt 0:00:04]} dxc4 {[%emt 0:11:28]} 15. Rxc4 {[%emt 0:02:43]} Ne7 {[%emt 0:03:08]} 16. Re1 {[%emt 0:03:23]} b6 {[%emt 0:04:00]} 17. Rc1 {[%emt 0:05:53]} Nd5 {[%emt 0:04:15]} 18. Qb3 {[%emt 0:02:31]} Bb7 {[%emt 0:03:36]} 19. Bb5 {[%emt 0:03:37]} Rc8 {[%emt 0:02:53]} 20. Qa4 {[%emt 0:12:11]} Rxc1 {[%emt 0:05:56]} 21. Rxc1 {[%emt 0:00:11]} Qe7 {[%emt 0:01:09]} 22. Bc6 {[%emt 0:00:46]} Rc8 {[%emt 0:02:00]} 23. Rc4 {[%emt 0:00:16]} Rxc6 {[%emt 0:01:12]} 24. Rxc6 {[%emt 0:00:08]} Qd7 {[%emt 0:00:35]} 25. Rc4 {[%emt 0:05:36]} b5 {[%emt 0:00:07]} 26. Qxa7 {[%emt 0:00:05]} bxc4 {[%emt 0:00:04]} 27. Nxc4 {[%emt 0:00:06]} Bf8 {[%emt 0:02:46]} 28. Nfd2 {[%emt 0:01:35]} Qc7 {[%emt 0:01:05]} 29. Nb3 {[%emt 0:03:17]} Bc8 {[%emt 0:04:23]} 30. Qxc7 {[%emt 0:03:53]} Nxc7 {[%emt 0:00:01]} 31. Nb6 {[%emt 0:00:08]} Bb7 {[%emt 0:00:26]} 32. Nc5 {[%emt 0:01:13]} Bc6 {[%emt 0:00:29]} 33. b4 {[%emt 0:00:42]} e5 {[%emt 0:02:48]} 34. Ncd7 {[%emt 0:02:23]} Bd6 {[%emt 0:01:00]} 35. dxe5 {[%emt 0:01:26]} fxe5 {[%emt 0:00:09]} 36. Nb8 {[%emt 0:03:47]} Bb5 {[%emt 0:00:47]} 37. a4 {[%emt 0:01:20]} Be8 {[%emt 0:00:57]} 38. a5 {[%emt 0:01:38]} Bb5 {[%emt 0:00:51]} 39. N8d7 {[%emt 0:01:19]} Na6 {[%emt 0:00:08]} 40. Nc8 {[%emt 0:00:20]} Bc7 {[%emt 0:00:46]} 41. Nf8 {[%emt 0:04:43]} Nxb4 {[%emt 0:00:59]} 42. Ne6 {[%emt 0:00:02]} Bd7 {[%emt 0:00:55]} 43. Nxc7 {[%emt 0:01:36]} Bxc8 {[%emt 0:00:03]} 44. f4 {[%emt 0:00:05]} exf4 {[%emt 0:00:09]} 45. gxf4 {[%emt 0:00:01]} Kg8 {[%emt 0:00:22]} 46. Kf2 {[%emt 0:02:10]} Kf7 {[%emt 0:00:43]} 47. g4 {[%emt 0:00:57]} Na6 {[%emt 0:00:50]} 48. Nxa6 {[%emt 0:01:06]} Bxa6 {[%emt 0:00:02]} 49. Ke3 {[%emt 0:00:51]} Bc8 {[%emt 0:00:32]} 50. Kf3 {[%emt 0:00:36]} Ke7 {[%emt 0:00:52]} 51. Kg3 {[%emt 0:00:16]} h6 {[%emt 0:00:29]} 52. Kh4 {[%emt 0:00:28]} Kf6 {[%emt 0:00:30]} 0-1

[Event "1st Bangalore GM-Open-A 2024"]
[Site "Bangalore"]
[Date "2024.01.20"]
[Round "4.38"]
[White "Nguyen, Duc Hoa"]
[Black "Mukund Hemant Agarwal"]
[Result "0-1"]
[ECO "B69"]
[WhiteElo "2322"]
[BlackElo "1852"]
[Annotator "RC"]
[PlyCount "130"]
[EventDate "2024.01.20"]
[EventType "swiss"]
[EventCountry "IND"]
[SourceTitle "playchess.com"]
[Source "ChessBase"]
[SourceQuality "1"]
[TimeControl "5400+30"]

1. e4 {[%emt 0:00:05]} c5 {[%emt 0:00:07]} 2. Nf3 {[%emt 0:00:22]} d6 {[%emt 0:00:02]} 3. d4 {[%emt 0:00:17]} cxd4 {[%emt 0:00:01]} 4. Nxd4 {[%emt 0:00:07]} Nf6 {[%emt 0:00:06]} 5. Nc3 {[%emt 0:00:07]} Nc6 {[%emt 0:00:04]} 6. Bg5 {[%emt 0:02:32]} e6 {[%emt 0:00:02]} 7. Qd2 {[%emt 0:00:34]} a6 {[%emt 0:00:02]} 8. O-O-O {[%emt 0:00:25]} Bd7 {[%emt 0:00:09]} 9. f4 {[%emt 0:00:20]} Be7 {[%emt 0:00:02]} 10. Nf3 {[%emt 0:02:09]} b5 {[%emt 0:00:03]} 11. Bxf6 {[%emt 0:00:46]} gxf6 {[%emt 0:00:09]} 12. Kb1 {[%emt 0:01:14]} Qb6 {[%emt 0:00:02]} 13. g3 {[%emt 0:09:39]} b4 {[%emt 0:00:39]} 14. Ne2 {[%emt 0:00:18]} h5 {[%emt 0:00:01]} 15. Qe1 {[%emt 0:04:20]} Rc8 {[%emt 0:10:51]} 16. f5 {[%emt 0:04:09]} e5 {[%emt 0:00:26]} 17. Nc1 {[%emt 0:04:14]} a5 {[%emt 0:09:20]} 18. Rd5 {[%emt 0:04:33]} Na7 {[%emt 0:16:04]} 19. Nd2 {[%emt 0:08:07]} Nb5 {[%emt 0:02:23]} 20. Nc4 {[%emt 0:00:39]} Qc7 {[%emt 0:03:00]} 21. Nb3 {[%emt 0:03:19]} a4 {[%emt 0:15:49]} 22. Nba5 {[%emt 0:00:45]} a3 {[%emt 0:09:47]} 23. Qxb4 {[%emt 0:00:42]} axb2 {[%emt 0:00:52]} 24. Rxb5 {[%emt 0:29:56]} d5 {[%emt 0:00:47]} 25. Qd2 {[%emt 0:02:08]} Bxb5 {[%emt 0:02:39]} 26. exd5 {[%emt 0:01:39]} Bxc4 {[%emt 0:04:59]} 27. Bxc4 {[%emt 0:00:06]} O-O {[%emt 0:06:07]} 28. Nc6 {[%emt 0:00:24]} Kg7 {[%emt 0:01:21]} 29. Qe2 {[%emt 0:02:01]} Rh8 {[%emt 0:02:27]} 30. Rd1 {[%emt 0:01:01]} Bd6 {[%emt 0:01:53]} 31. Qe3 {[%emt 0:03:12]} Ra8 {[%emt 0:02:10]} 32. Rd3 {[%emt 0:01:51]} Ra4 {[%emt 0:02:03]} 33. Bb5 {[%emt 0:00:51]} Rg4 {[%emt 0:00:44]} 34. a4 {[%emt 0:02:15]} Rg5 {[%emt 0:00:39]} 35. c4 {[%emt 0:00:51]} h4 {[%emt 0:04:25]} 36. g4 {[%emt 0:02:35]} e4 {[%emt 0:02:12]} 37. Qxe4 {[%emt 0:01:00]} Bxh2 {[%emt 0:00:03]} 38. c5 {[%emt 0:03:27]} Qf4 {[%emt 0:00:43]} 39. Qxf4 {[%emt 0:00:05]} Bxf4 {[%emt 0:00:04]} 40. Rh3 {[%emt 0:00:06]} Rxg4 {[%emt 0:00:45]} 41. Kxb2 {[%emt 0:03:01]} Rg2+ {[%emt 0:02:53]} 42. Kc3 {[%emt 0:01:45]} Rg3+ {[%emt 0:00:55]} 43. Rxg3+ {[%emt 0:00:02]} hxg3 {[%emt 0:00:13]} 44. Bf1 {[%emt 0:00:04]} Rh1 {[%emt 0:01:16]} 45. Bg2 {[%emt 0:00:04]} Rh2 {[%emt 0:01:43]} 46. Bf3 {[%emt 0:02:07]} Rf2 {[%emt 0:00:28]} 47. Bh1 {[%emt 0:00:07]} Rh2 {[%emt 0:00:58]} 48. Bf3 {[%emt 0:00:01]} Rf2 {[%emt 0:00:17]} 49. Bh1 {[%emt 0:00:12]} Rh2 {[%emt 0:01:37]} 50. Bf3 {[%emt 0:00:09]} Be3 {[%emt 0:00:31]} 51. Kc4 {[%emt 0:03:11]} Rf2 {[%emt 0:00:25]} 52. Bh1 {[%emt 0:00:08]} Rf1 {[%emt 0:00:26]} 53. Bg2 {[%emt 0:00:15]} Rc1+ {[%emt 0:00:20]} 54. Kd3 {[%emt 0:00:22]} Bxc5 {[%emt 0:00:14]} 55. Ke2 {[%emt 0:00:21]} Rc2+ {[%emt 0:00:25]} 56. Kf3 {[%emt 0:00:01]} Bd6 {[%emt 0:00:07]} 57. Bh3 {[%emt 0:00:52]} Rf2+ {[%emt 0:00:14]} 58. Ke4 {[%emt 0:00:06]} g2 {[%emt 0:01:09]} 59. Bxg2 {[%emt 0:00:04]} Rxg2 {[%emt 0:00:05]} 60. a5 {[%emt 0:00:09]} Ra2 {[%emt 0:01:10]} 61. Kd4 {[%emt 0:00:03]} Bc7 {[%emt 0:00:24]} 62. Kc5 {[%emt 0:00:48]} Bxa5 {[%emt 0:00:23]} 63. d6 {[%emt 0:00:03]} Rc2+ {[%emt 0:00:22]} 64. Kb5 {[%emt 0:00:01]} Rxc6 {[%emt 0:00:35]} 65. Kxc6 {[%emt 0:00:04]} Kh6 {[%emt 0:00:05]} 0-1

[Event "1st Bangalore GM-Open-A 2024"]
[Site "Bangalore"]
[Date "2024.01.20"]
[Round "4.39"]
[White "Majumder Shrayan"]
[Black "Saptarshi, Roy"]
[Result "1/2-1/2"]
[ECO "D36"]
[WhiteElo "1916"]
[BlackElo "2322"]
[Annotator "RC"]
[PlyCount "71"]
[EventDate "2024.01.20"]
[EventType "swiss"]
[EventCountry "IND"]
[SourceTitle "playchess.com"]
[Source "ChessBase"]
[SourceQuality "1"]
[TimeControl "5400+30"]

1. d4 {[%emt 0:00:14]} d5 {[%emt 0:00:14]} 2. c4 {[%emt 0:00:11]} e6 {[%emt 0:00:34]} 3. Nc3 {[%emt 0:00:09]} Nf6 {[%emt 0:00:17]} 4. cxd5 {[%emt 0:00:09]} exd5 {[%emt 0:00:05]} 5. Bg5 {[%emt 0:00:12]} c6 {[%emt 0:00:13]} 6. e3 {[%emt 0:00:49]} Be7 {[%emt 0:00:14]} 7. Bd3 {[%emt 0:01:11]} Nbd7 {[%emt 0:00:14]} 8. Qc2 {[%emt 0:01:32]} O-O {[%emt 0:00:24]} 9. Nf3 {[%emt 0:01:19]} Re8 {[%emt 0:00:09]} 10. O-O {[%emt 0:00:09]} Nf8 {[%emt 0:00:21]} 11. Rab1 {[%emt 0:03:41]} a5 {[%emt 0:06:06]} 12. a3 {[%emt 0:01:47]} Ng6 {[%emt 0:02:44]} 13. b4 {[%emt 0:18:46]} axb4 {[%emt 0:00:23]} 14. axb4 {[%emt 0:00:08]} Ne4 {[%emt 0:02:18]} 15. Bxe7 {[%emt 0:01:29]} Qxe7 {[%emt 0:01:36]} 16. Bxe4 {[%emt 0:09:13]} dxe4 {[%emt 0:00:07]} 17. Nd2 {[%emt 0:00:12]} Bf5 {[%emt 0:04:23]} 18. Ne2 {[%emt 0:06:27]} Nh4 {[%emt 0:02:08]} 19. Ng3 {[%emt 0:00:57]} Bg6 {[%emt 0:04:04]} 20. Qc5 {[%emt 0:10:49]} Qf6 {[%emt 0:04:18]} 21. Nh5 {[%emt 0:09:49]} Bxh5 {[%emt 0:07:05]} 22. Qxh5 {[%emt 0:00:09]} g6 {[%emt 0:00:10]} 23. Qg4 {[%emt 0:05:09]} h5 {[%emt 0:01:48]} 24. Qg3 {[%emt 0:02:43]} Rad8 {[%emt 0:08:45]} 25. Rfc1 {[%emt 0:04:40]} Rd5 {[%emt 0:06:05]} 26. Rc5 {[%emt 0:00:45]} b6 {[%emt 0:06:12]} 27. Rxd5 {[%emt 0:00:07]} cxd5 {[%emt 0:00:01]} 28. Rc1 {[%emt 0:07:14]} Qe7 {[%emt 0:05:19]} 29. Nf1 {[%emt 0:04:33]} Nf5 {[%emt 0:04:41]} 30. Qc7 {[%emt 0:00:17]} Qxc7 {[%emt 0:06:04]} 31. Rxc7 {[%emt 0:00:10]} Nd6 {[%emt 0:04:39]} 32. Nd2 {[%emt 0:04:40]} Ra8 {[%emt 0:03:28]} 33. g3 {[%emt 0:00:59]} Ra2 {[%emt 0:11:09]} 34. Rc6 {[%emt 0:00:40]} Nb5 {[%emt 0:01:59]} 35. Nb3 {[%emt 0:04:11]} Ra4 {[%emt 0:02:17]} 36. Rxb6 {[%emt 0:01:02]} 1/2-1/2

[Event "1st Bangalore GM-Open-A 2024"]
[Site "Bangalore"]
[Date "2024.01.20"]
[Round "4.40"]
[White "Sankalp Gupta"]
[Black "Deodhar, Vrushali Umesh"]
[Result "1-0"]
[ECO "C10"]
[WhiteElo "2535"]
[BlackElo "2100"]
[Annotator "TA"]
[PlyCount "53"]
[EventDate "2024.01.20"]
[EventType "swiss"]
[EventCountry "IND"]
[SourceTitle "playchess.com"]
[Source "ChessBase"]
[SourceQuality "1"]
[TimeControl "5400+30"]

{[%evp 18,53,54,50,52,57,91,66,114,85,83,54,104,113,212,224,297,300,556,556,388,116,118,0,152,163,869,963,953,948,923,927,3321,3156,29990,1018,29991,29992]} 1. e4 {[%emt 0:00:08]} e6 {[%emt 0:00:04]} 2. d4 {[%emt 0:00:10]} d5 {[%emt 0:00:03]} 3. Nc3 {[%emt 0:00:06]} dxe4 {[%emt 0:01:55]} 4. Nxe4 {[%emt 0:00:41]} Nd7 {[%emt 0:00:04]} 5. Nf3 {[%emt 0:02:13]} Ngf6 {[%emt 0:00:04]} 6. Bd3 {[%emt 0:02:48]} Nxe4 {[%emt 0:00:08]} 7. Bxe4 {[%emt 0:00:05]} Nf6 {[%emt 0:00:03]} 8. Bg5 {[%emt 0:01:42]} Be7 {[%emt 0:02:48] 8...Qd6 is vanishing.} 9. Bxf6 {[%emt 0:01:20]} Bxf6 {[%emt 0:00:03]} 10. Qd3 {[%emt 0:00:20]} Qd6 {[%emt 0:11:41] C10: French with 3 Nc3: Unusual Black 3rd moves and 3...dxe4.} 11. O-O-O {[%emt 0:04:17]} (11. Bxh7 g6 12. Bxg6 fxg6 13. Qxg6+ Ke7 $17) 11... g6 {[%emt 0:11:06]} 12. Qe3 {[%emt 0:03:36] [#]} (12. Ne5 {looks sharper.} c5 13. Bxb7 Bxb7 14. Qb5+) 12... Qb6 $146 {[%emt 0:06:05]} (12... O-O $14) ({Predecessor:} 12... Bd7 13. Ne5 Bc6 14. Bxc6+ bxc6 15. Qc3 c5 16. f4 Bxe5 17. fxe5 Qd5 18. Qxc5 Qxc5 19. dxc5 {1-0 Sobolevsky,L (2358)-Kottwitz,D (2041) Jena Fair op 2005 (2)}) 13. Rd3 {[%emt 0:02:01]} Bg7 {[%emt 0:05:42]} 14. Rb3 {[%emt 0:02:50]} Qa5 {[%emt 0:02:36]} ({Black should try} 14... Qd6 $14) 15. Kb1 $16 {[%emt 0:01:24]} ({Stronger than} 15. Bxb7 Bxb7 16. Rxb7 Qxa2 $15) 15... Rb8 {[%emt 0:00:51] [#]} (15... O-O $16) 16. Ne5 $1 $18 {[%emt 0:04:57][%mdl 512]} Bxe5 {[%emt 0:05:49]} (16... Ra8 17. Rd1) 17. dxe5 {[%emt 0:00:07]} O-O $2 {[%emt 0:00:18]} (17... b6 18. Ra3 Qb5 19. Rxa7 O-O) 18. Qf4 {[%emt 0:02:26]} Qc5 {[%emt 0:07:23]} 19. Qf6 $2 {[%emt 0:05:47]} (19. h4 $18 {is more deadly. h5 is the strong threat.} Qe7 20. Qh6) 19... Qd4 $16 {[%emt 0:01:35]} 20. Qf4 {[%emt 0:10:22] White is much more active. The black rooks are badly placed.} ({White should play} 20. f3 $16 {Black must now prevent Rd3.} Qd8 21. Rd3 Qxf6 22. exf6) 20... f5 $2 {[%emt 0:07:02]} (20... Qc5 $1 $11) 21. exf6 {[%emt 0:00:22][%mdl 64] Discovered Attack} Qd6 {[%emt 0:06:10]} (21... Qxf6 22. Qxc7 Qf4 23. Qxf4 Rxf4) 22. Qg5 $18 {[%emt 0:01:08][%cal Oe4g6] Threatening mate with Bxg6!} e5 {[%emt 0:03:08]} 23. Rf3 {[%emt 0:00:35][%cal Oe4g6,Bb3f3,Bf3d3,Bd3d8][%mdl 32] Intending Bxg6! and mate.} Rf7 {[%emt 0:02:12]} 24. h4 {[%emt 0:01:41] And now h5 would win.} ({Not} 24. Rd3 Qxf6 25. Rd8+ Kg7 $16) 24... Qd4 {[%emt 0:02:41]} 25. Rd3 {[%emt 0:03:01]} Qxe4 {[%emt 0:01:01]} 26. Rd8+ {[%emt 0:00:10]} Rf8 {[%emt 0:00:00] [#]} 27. Qh6 $1 {[%emt 0:00:15][%mdl 64] Double Attack.   Weighted Error Value: White=0.54/Black=0.99} 1-0

[Event "1st Bangalore GM-Open-A 2024"]
[Site "Bangalore"]
[Date "2024.01.21"]
[Round "5.1"]
[White "Pranav Anand"]
[Black "Neelash Saha"]
[Result "1/2-1/2"]
[ECO "C43"]
[WhiteElo "2513"]
[BlackElo "2446"]
[Annotator "TA"]
[PlyCount "76"]
[EventDate "2024.01.20"]
[EventType "swiss"]
[EventCountry "IND"]
[SourceTitle "playchess.com"]
[Source "ChessBase"]
[SourceQuality "1"]
[TimeControl "5400+30"]

{[%evp 9,76,31,29,31,28,31,33,26,30,22,26,12,38,16,19,9,13,13,22,18,17,22,25,30,23,18,29,18,18,22,21,19,18,18,43,28,66,23,31,13,33,34,60,39,72,34,39,21,63,8,8,8,8,0,0,0,0,0,0,0,0,0,0,0,0,0,0,0,16]} 1. e4 {[%emt 0:00:03]} e5 {[%emt 0:00:16]} 2. Nf3 {[%emt 0:00:05]} Nf6 {[%emt 0:00:04]} 3. d4 {[%emt 0:00:03]} Nxe4 {[%emt 0:00:10]} 4. Bd3 {[%emt 0:00:05]} Nc6 {[%emt 0:00:43]} 5. Nxe5 {[%emt 0:00:08]} Nxe5 {[%emt 0:00:29]} 6. dxe5 {[%emt 0:00:01]} Nc5 {[%emt 0:00:07][%cal Be4c5,Bc5e6,Be6d4][%mdl 32]} 7. Bc4 {[%emt 0:00:04]} d6 {[%emt 0:00:33]} 8. Qf3 {[%emt 0:00:13][%csl Gc4][%cal Rf3f7] White is slightly better.} Ne6 {[%emt 0:00:06]} 9. exd6 {[%emt 0:00:03]} Bxd6 {[%emt 0:00:07]} 10. Be3 {[%emt 0:00:03]} Qe7 {[%emt 0:04:07]} 11. Nc3 {[%emt 0:01:45]} (11. Nd2 $5) 11... Nd4 {[%emt 0:00:12] [#]} 12. Qxf7+ {[%emt 0:00:37]} Qxf7 {[%emt 0:00:04]} 13. Bxf7+ {[%emt 0:00:04]} Kxf7 {[%emt 0:00:05]} 14. Bxd4 {[%emt 0:00:04]} Re8+ {[%emt 0:00:04]} 15. Be3 {[%emt 0:00:51]} b6 {[%emt 0:00:06]} 16. Nb5 {[%emt 0:11:45]} Be5 {[%emt 0:04:21]} 17. O-O-O {[%emt 0:03:07]} a6 {[%emt 0:00:09]} 18. Nd4 {[%emt 0:07:36]} Bb7 {[%emt 0:00:07]} 19. Nf3 {[%emt 0:01:26]} Bxf3 {[%emt 0:01:56]} 20. gxf3 {[%emt 0:00:07]} Rad8 {[%emt 0:01:33]} 21. c3 {[%emt 0:00:55]} Ke6 {[%emt 0:04:53]} 22. Rde1 {[%emt 0:02:35]} Kf5 {[%emt 0:01:36]} 23. Kc2 {[%emt 0:01:41]} g6 {[%emt 0:05:00]} 24. a4 {[%emt 0:02:43][%cal Ba2a4,Ba4a5][%mdl 32]} Rd7 {[%emt 0:11:00] [#]} 25. a5 $1 {[%emt 0:04:27]} b5 {[%emt 0:01:35]} (25... Bf4 26. axb6) 26. h3 {[%emt 0:06:11]} Bd6 {[%emt 0:01:39]} 27. Rhg1 {[%emt 0:04:22]} Rf7 {[%emt 0:02:06]} 28. Rg4 {[%emt 0:14:14]} Ke6 {[%emt 0:04:52]} 29. f4 {[%emt 0:03:05]} (29. Bf4+ $14 Kd7 30. Rxe8 Kxe8 31. Bxd6 cxd6 32. f4) 29... Kd7 $11 {[%emt 0:01:02] The position is equal.} 30. Rd1 {[%emt 0:00:28]} Kc6 {[%emt 0:00:19]} 31. Kd3 {[%emt 0:02:03]} Re6 {[%emt 0:01:13]} 32. b4 {[%emt 0:01:39]} h5 {[%emt 0:02:00]} 33. Rg3 {[%emt 0:07:30]} Bxf4 {[%emt 0:02:17]} 34. Rf3 {[%emt 0:01:54]} Rd7+ {[%emt 0:01:26]} 35. Bd4 {[%emt 0:00:26]} Bh6 {[%emt 0:00:51]} 36. Rg1 {[%emt 0:01:14]} Bg7 {[%emt 0:01:49]} 37. Re3 {[%emt 0:03:38]} Red6 {[%emt 0:02:17][%cal Rg7d4]} 38. Re4 {[%emt 0:00:09]} Bxd4 {[%emt 0:03:05] Weighted Error Value: White=0.10 (very precise) /Black=0.07 (flawless)} 1/2-1/2